fUST/lending_fUST_20250719
["ID","MTS","AMOUNT","RATE_DAILY","PERIOD"]
[373212529,1752907859250,-520.08,0.00019726,2]
[373212530,1752907859259,-2037.7,0.00019726,2]
[373212531,1752907859270,-2781.98,0.00019726,2]
[373212532,1752907859279,-460.0,0.00019726,2]
[373212533,1752907859289,-1565.73,0.00019726,2]
[373212534,1752907859298,-223.81751,0.00019734,2]
[373212535,1752907859310,-1183.41532937,0.00019764,2]
[373212536,1752907859321,-500.0,0.00019778,2]
[373212537,1752907859330,-500.0,0.00019778,2]
[373212539,1752907859340,-500.0,0.00019778,2]
[373212541,1752907859350,-500.0,0.00019778,2]
[373212543,1752907859359,-500.0,0.00019778,2]
[373212545,1752907859368,-500.0,0.00019778,2]
[373212546,1752907859378,-500.0,0.00019778,2]
[373212548,1752907859387,-500.0,0.00019778,2]
[373212550,1752907859397,-500.0,0.00019778,2]
[373212553,1752907859408,-500.0,0.00019778,2]
[373212555,1752907859417,-150.44874067,0.00019778,2]
[373212557,1752907859427,-170.18971475,0.00019778,2]
[373212559,1752907859436,-500.0,0.00019778,2]
[373212560,1752907859446,-500.0,0.00019778,2]
[373212562,1752907859455,-557.68192938,0.00019778,2]
[373212564,1752907859465,-500.0,0.00019778,2]
[373212566,1752907859474,-500.0,0.00019778,2]
[373212568,1752907859484,-500.0,0.00019778,2]
[373212570,1752907859493,-587.0,0.00019829,2]
[373212572,1752907859504,-587.0,0.00019829,2]
[373212574,1752907859513,-480.0,0.00019829,2]
[373212576,1752907859523,-362.0,0.00019829,2]
[373212578,1752907859532,-454.40913181,0.00019845,4]
[373212580,1752907859542,-460.0,0.00019898,2]
[373212582,1752907859551,-501.03367433,0.00019973,2]
[373212584,1752907859560,-500.0,0.00019973,2]
[373212586,1752907859569,-505.11833627,0.00019973,2]
[373212588,1752907859579,-382.52807795,0.00019999,2]
[373212590,1752907859588,-441.0,0.0002,2]
[373212592,1752907859598,-924.29,0.0002,2]
[373212594,1752907859607,-475.19,0.0002,2]
[373212596,1752907859617,-550.92734134,0.0002,2]
[373212598,1752907859626,-460.0,0.0002,2]
[373212600,1752907859635,-460.0,0.0002,2]
[373212602,1752907859645,-639.44,0.0002,2]
[373212604,1752907859654,-460.0,0.0002,2]
[373212606,1752907859664,-460.0,0.0002,2]
[373212608,1752907859673,-460.0,0.0002,2]
[373212610,1752907859682,-460.0,0.0002,2]
[373212613,1752907859693,-586.56849972,0.0002,2]
[373212614,1752907859703,-460.0,0.0002,2]
[373212616,1752907859712,-460.0,0.0002,2]
[373212618,1752907859722,-460.0,0.0002,2]
[373212630,1752907859820,-575.94,0.0002,2]
[373212632,1752907859830,-460.0,0.0002,2]
[373212634,1752907859840,-460.0,0.0002,2]
[373212636,1752907859849,-508.05,0.0002,2]
[373212638,1752907859859,-3168.93,0.0002,2]
[373212640,1752907859868,-3148.5,0.0002,2]
[373212642,1752907859877,-629.76,0.0002,2]
[373212644,1752907859887,-792.23,0.0002,2]
[373212646,1752907859896,-499.24,0.0002,2]
[373212648,1752907859906,-588.5,0.0002,2]
[373212650,1752907859916,-460.0,0.0002,2]
[373212652,1752907859925,-819.5,0.0002,2]
[373212654,1752907859936,-3198.65,0.0002,2]
[373212656,1752907859946,-460.0,0.0002,2]
[373212658,1752907859956,-1266.66,0.0002,2]
[373212660,1752907859966,-579.8,0.0002,2]
[373212662,1752907859976,-1848.02,0.0002,2]
[373212664,1752907859985,-630.59,0.0002,2]
[373212666,1752907859995,-460.0,0.0002,2]
[373212668,1752907860005,-460.0,0.0002,2]
[373212670,1752907860015,-2194.67,0.0002,2]
[373212672,1752907860025,-197.33649124,0.0002,2]
[373212674,1752907860035,-1136.64,0.0002,2]
[373212676,1752907860046,-7435.29,0.0002,2]
[373212678,1752907860056,-761.71,0.0002,2]
[373212680,1752907860066,-684.42,0.0002,2]
[373212682,1752907860076,-209.09007417,0.0002,2]
[373212684,1752907860086,-727.96,0.0002,2]
[373212686,1752907860096,-705.88,0.0002,2]
[373212688,1752907860106,-1405.27,0.0002,2]
[373212690,1752907860116,-460.0,0.0002,2]
[373212692,1752907860126,-677.34,0.0002,2]
[373212694,1752907860136,-2778.31,0.0002,2]
[373212696,1752907860146,-4383.08,0.0002,2]
[373212698,1752907860156,-692.73,0.0002,2]
[373212700,1752907860167,-460.0,0.0002,2]
[373212703,1752907860178,-163.66966262,0.0002,2]
[373212705,1752907860188,-853.43,0.0002,2]
[373212707,1752907860198,-561.34,0.0002,2]
[373212709,1752907860207,-963.81,0.0002,2]
[373212711,1752907860218,-641.44,0.0002,2]
[373212713,1752907860231,-460.0,0.0002,2]
[373212715,1752907860241,-460.0,0.0002,2]
[373212717,1752907860251,-529.8,0.0002,2]
[373212719,1752907860261,-1547.66,0.0002,2]
[373212721,1752907860272,-520.08,0.0002,2]
[373212723,1752907860282,-2037.7,0.0002,2]
[373212725,1752907860293,-460.0,0.0002,2]
[373212727,1752907860303,-2781.98,0.0002,2]
[373212729,1752907860313,-1565.73,0.0002,2]
[373212731,1752907860323,-5224.8904645,0.00020003,2]
[373212733,1752907860333,-1006.81965426,0.0002001,2]
[373212735,1752907860343,-1014.60974365,0.0002001,2]
[373212737,1752907860352,-1132.70725555,0.0002001,2]
[373212739,1752907860362,-1001.60913281,0.0002001,2]
[373212741,1752907860372,-1001.10177554,0.0002001,2]
[373212743,1752907860382,-1001.36778222,0.0002001,2]
[373212745,1752907860392,-1000.0,0.0002001,2]
[373212747,1752907860402,-1017.06463871,0.0002001,2]
[373212749,1752907860412,-1000.0,0.0002001,2]
[373212751,1752907860421,-2351.0,0.00020028,2]
[373212753,1752907860431,-454.40913181,0.00020034,4]
[373212755,1752907860441,-500.0,0.00020057,2]
[373212757,1752907860450,-360.0,0.00020063,2]
[373212759,1752907860460,-1001.70781736,0.00020069,2]
[373212761,1752907860470,-500.88073522,0.00020069,2]
[373212763,1752907860480,-440.43305097,0.0002008,2]
[373212765,1752907860490,-500.0,0.0002008,2]
[373212767,1752907860501,-501.03043547,0.00020094,2]
[373212769,1752907860511,-460.0,0.00020172,2]
[373212771,1752907860521,-344.262736,0.00020187,2]
[373212773,1752907860530,-454.40913181,0.00020223,4]
[373212775,1752907860540,-924.29,0.00020273,2]
[373212777,1752907860550,-475.19,0.00020273,2]
[373212779,1752907860559,-460.0,0.00020273,2]
[373212781,1752907860569,-639.44,0.00020273,2]
[373212783,1752907860578,-460.0,0.00020273,2]
[373212785,1752907860587,-460.0,0.00020273,2]
[373212787,1752907860597,-460.0,0.00020273,2]
[373212789,1752907860607,-565.34227026,0.00020273,2]
[373212791,1752907860617,-460.0,0.00020273,2]
[373212793,1752907860627,-460.0,0.00020273,2]
[373212795,1752907860637,-460.0,0.00020273,2]
[373212797,1752907860646,-575.94,0.00020273,2]
[373212799,1752907860656,-431.4586869,0.00020273,2]
[373212801,1752907860665,-460.0,0.00020273,2]
[373212803,1752907860675,-508.05,0.00020273,2]
[373212805,1752907860685,-3168.93,0.00020273,2]
[373212807,1752907860695,-3148.5,0.00020273,2]
[373212809,1752907860705,-629.76,0.00020273,2]
[373212811,1752907860715,-792.23,0.00020273,2]
[373212813,1752907860724,-499.24,0.00020273,2]
[373212815,1752907860735,-588.5,0.00020273,2]
[373212817,1752907860748,-478.23633946,0.00020273,2]
[373212819,1752907860766,-819.5,0.00020273,2]
[373212821,1752907860776,-3198.65,0.00020273,2]
[373212823,1752907860785,-460.0,0.00020273,2]
[373212825,1752907860795,-579.8,0.00020273,2]
[373212827,1752907860805,-1848.02,0.00020273,2]
[373212829,1752907860817,-1266.66,0.00020273,2]
[373212831,1752907860827,-630.59,0.00020273,2]
[373212833,1752907860837,-460.0,0.00020273,2]
[373212835,1752907860846,-460.0,0.00020273,2]
[373212837,1752907860855,-2194.67,0.00020273,2]
[373212839,1752907860865,-1136.64,0.00020273,2]
[373212841,1752907860874,-7435.29,0.00020273,2]
[373212843,1752907860883,-761.71,0.00020273,2]
[373212845,1752907860893,-684.42,0.00020273,2]
[373212847,1752907860903,-727.96,0.00020273,2]
[373212849,1752907860913,-705.88,0.00020273,2]
[373212851,1752907860923,-1405.27,0.00020273,2]
[373212853,1752907860932,-460.0,0.00020273,2]
[373212855,1752907860942,-677.34,0.00020273,2]
[373212857,1752907860951,-2778.31,0.00020273,2]
[373212859,1752907860961,-4383.08,0.00020273,2]
[373212861,1752907860971,-692.73,0.00020273,2]
[373212863,1752907860980,-853.43,0.00020273,2]
[373212865,1752907860990,-561.34,0.00020273,2]
[373212867,1752907861001,-963.81,0.00020273,2]
[373212869,1752907861011,-641.44,0.00020273,2]
[373212872,1752907861020,-460.0,0.00020273,2]
[373212873,1752907861030,-460.0,0.00020273,2]
[373212876,1752907861039,-529.8,0.00020273,2]
[373212878,1752907861049,-1547.66,0.00020273,2]
[373212880,1752907861058,-520.08,0.00020273,2]
[373212881,1752907861068,-2037.7,0.00020273,2]
[373212883,1752907861077,-205.52373918,0.00020273,2]
[373212886,1752907861089,-2781.98,0.00020273,2]
[373212888,1752907861099,-1565.73,0.00020273,2]
[373212890,1752907861108,-441.0,0.00020274,2]
[373212892,1752907861117,-160.0,0.00020314,3]
[373212894,1752907861126,-5224.8904645,0.00020314,3]
[373212896,1752907861135,-476.34170116,0.0002032,3]
[373212898,1752907861145,-12612.80205064,0.0002032,3]
[373212900,1752907861154,-214.52603969,0.0002032,3]
[373212902,1752907861164,-1000.0,0.00020326,2]
[373212904,1752907861175,-493.83870128,0.00020326,2]
[373212906,1752907861184,-1000.0,0.00020326,2]
[373212908,1752907861194,-1001.03340429,0.00020326,2]
[373212910,1752907861204,-1001.44691967,0.00020326,2]
[373212912,1752907861213,-1000.0,0.00020326,2]
[373212914,1752907861223,-1001.11006549,0.00020326,2]
[373212916,1752907861235,-1000.0,0.00020326,2]
[373212918,1752907861245,-1000.0,0.00020326,2]
[373212920,1752907861255,-1000.0,0.00020326,2]
[373212922,1752907861264,-1001.62759058,0.00020326,2]
[373212924,1752907861274,-503.61159332,0.00020326,2]
[373212926,1752907861284,-501.01501956,0.00020326,2]
[373212928,1752907861294,-1000.0,0.00020326,2]
[373212930,1752907861305,-1000.0,0.00020326,2]
[373212932,1752907861315,-1053.80709739,0.00020351,2]
[373212934,1752907861325,-303.28808609,0.00020412,4]
[373212936,1752907861335,-460.0,0.00020446,2]
[373212938,1752907861344,-7299.98262913,0.00020447,2]
[373212940,1752907861354,-900.0,0.00020485,2]
[373212942,1752907861363,-621.69907411,0.00020521,2]
[373212944,1752907861373,-924.29,0.00020547,2]
[373212946,1752907861382,-475.19,0.00020547,2]
[373212948,1752907861392,-460.0,0.00020547,2]
[373212950,1752907861401,-639.44,0.00020547,2]
[373212952,1752907861410,-460.0,0.00020547,2]
[373212954,1752907861420,-460.0,0.00020547,2]
[373212956,1752907861429,-460.0,0.00020547,2]
[373212958,1752907861440,-460.0,0.00020547,2]
[373212960,1752907861449,-281.48195383,0.00020547,2]
[373212962,1752907861539,-460.0,0.00020547,2]
[373212963,1752907861549,-575.94,0.00020547,2]
[373212964,1752907861558,-460.0,0.00020547,2]
[373212965,1752907861567,-508.05,0.00020547,2]
[373212966,1752907861577,-3168.93,0.00020547,2]
[373212967,1752907861587,-3148.5,0.00020547,2]
[373212968,1752907861596,-629.76,0.00020547,2]
[373212969,1752907861605,-499.24,0.00020547,2]
[373212970,1752907861614,-792.23,0.00020547,2]
[373212971,1752907861624,-588.5,0.00020547,2]
[373212972,1752907861633,-819.5,0.00020547,2]
[373212973,1752907861643,-3198.65,0.00020547,2]
[373212974,1752907861651,-236.70578808,0.00020547,2]
[373212975,1752907861661,-579.8,0.00020547,2]
[373212976,1752907861670,-1848.02,0.00020547,2]
[373212977,1752907861680,-1266.66,0.00020547,2]
[373212978,1752907861689,-630.59,0.00020547,2]
[373212979,1752907861698,-460.0,0.00020547,2]
[373212981,1752907861708,-460.0,0.00020547,2]
[373212982,1752907861718,-2194.67,0.00020547,2]
[373212983,1752907861728,-1136.64,0.00020547,2]
[373212984,1752907861737,-7435.29,0.00020547,2]
[373212985,1752907861746,-500.0,0.00020547,2]
[373212987,1752907861757,-546.79,0.00020547,2]
[373212989,1752907861767,-761.71,0.00020547,2]
[373212991,1752907861777,-684.42,0.00020547,2]
[373212993,1752907861788,-727.96,0.00020547,2]
[373212995,1752907861798,-705.88,0.00020547,2]
[373212997,1752907861808,-1405.27,0.00020547,2]
[373212999,1752907861818,-460.0,0.00020547,2]
[373213001,1752907861828,-677.34,0.00020547,2]
[373213003,1752907861838,-2778.31,0.00020547,2]
[373213005,1752907861848,-4383.08,0.00020547,2]
[373213007,1752907861859,-692.73,0.00020547,2]
[373213009,1752907861869,-853.43,0.00020547,2]
[373213011,1752907861879,-561.34,0.00020547,2]
[373213013,1752907861888,-963.81,0.00020547,2]
[373213015,1752907861898,-641.44,0.00020547,2]
[373213017,1752907861907,-422.66257374,0.00020547,2]
[373213019,1752907861917,-469.98334508,0.00020547,2]
[373213021,1752907861926,-529.8,0.00020547,2]
[373213023,1752907861936,-1547.66,0.00020547,2]
[373213025,1752907861946,-520.08,0.00020547,2]
[373213027,1752907861956,-2037.7,0.00020547,2]
[373213029,1752907861968,-2781.98,0.00020547,2]
[373213031,1752907861978,-1565.73,0.00020547,2]
[373213033,1752907861988,-441.0,0.00020548,2]
[373213036,1752907861998,-156.0,0.00020548,3]
[373213038,1752907862010,-618.97160078,0.00020558,2]
[373213040,1752907862019,-353.34083813,0.00020605,2]
[373213042,1752907862031,-460.0,0.00020611,2]
[373213044,1752907862040,-5224.8904645,0.00020624,3]
[373213045,1752907862050,-807.06636304,0.00020628,2]
[373213048,1752907862060,-3801.642,0.00020655,2]
[373213050,1752907862070,-151.0,0.00020655,2]
[373213052,1752907862080,-151.0,0.00020655,2]
[373213054,1752907862092,-151.0,0.00020655,2]
[373213056,1752907862103,-207.4,0.00020655,2]
[373213058,1752907862115,-151.0,0.00020655,2]
[373213060,1752907862125,-151.0,0.00020655,2]
[373213062,1752907862136,-151.0,0.00020655,2]
[373213064,1752907862147,-151.0,0.00020655,2]
[373213066,1752907862156,-151.0,0.00020655,2]
[373213068,1752907862167,-151.0,0.00020655,2]
[373213070,1752907862178,-151.0,0.00020655,2]
[373213072,1752907862188,-151.0,0.00020655,2]
[373213074,1752907862198,-151.0,0.00020655,2]
[373213075,1752907862208,-151.0,0.00020655,2]
[373213077,1752907862219,-151.0,0.00020655,2]
[373213080,1752907862234,-151.0,0.00020655,2]
[373213082,1752907862244,-151.0,0.00020655,2]
[373213084,1752907862256,-151.0,0.00020655,2]
[373213086,1752907862265,-151.0,0.00020655,2]
[373213088,1752907862276,-151.0,0.00020655,2]
[373213090,1752907862286,-151.0,0.00020655,2]
[373213092,1752907862295,-151.0,0.00020655,2]
[373213094,1752907862309,-25000.0,0.00020655,2]
[373213096,1752907862319,-716.45673598,0.00020655,2]
[373213098,1752907862328,-223.81751,0.000207,3]
[373213100,1752907862338,-3942.302754,0.0002071,2]
[373213102,1752907862347,-460.0,0.0002072,2]
[373213104,1752907862357,-17112.73595565,0.00020721,2]
[373213106,1752907862366,-305.40284297,0.00020765,2]
[373213108,1752907862375,-151.0,0.000208,4]
[373213110,1752907862385,-924.29,0.00020821,2]
[373213112,1752907862395,-475.19,0.00020821,2]
[373213114,1752907862404,-310.8,0.00020821,2]
[373213116,1752907862413,-639.44,0.00020821,2]
[373213118,1752907862422,-460.0,0.00020821,2]
[373213120,1752907862432,-460.0,0.00020821,2]
[373213122,1752907862441,-460.0,0.00020821,2]
[373213124,1752907862450,-460.0,0.00020821,2]
[373213126,1752907862460,-460.0,0.00020821,2]
[373213128,1752907862469,-575.94,0.00020821,2]
[373213130,1752907862479,-460.0,0.00020821,2]
[373213132,1752907862488,-508.05,0.00020821,2]
[373213134,1752907862498,-3168.93,0.00020821,2]
[373213136,1752907862509,-3148.5,0.00020821,2]
[373213138,1752907862519,-629.76,0.00020821,2]
[373213140,1752907862529,-499.24,0.00020821,2]
[373213142,1752907862538,-792.23,0.00020821,2]
[373213144,1752907862547,-588.5,0.00020821,2]
[373213146,1752907862557,-819.5,0.00020821,2]
[373213148,1752907862567,-3198.65,0.00020821,2]
[373213150,1752907862576,-579.8,0.00020821,2]
[373213152,1752907862586,-1848.02,0.00020821,2]
[373213154,1752907862595,-1266.66,0.00020821,2]
[373213156,1752907862605,-630.59,0.00020821,2]
[373213158,1752907862614,-460.0,0.00020821,2]
[373213160,1752907862624,-460.0,0.00020821,2]
[373213162,1752907862634,-2194.67,0.00020821,2]
[373213164,1752907862644,-1136.64,0.00020821,2]
[373213166,1752907862653,-7435.29,0.00020821,2]
[373213168,1752907862663,-761.71,0.00020821,2]
[373213170,1752907862673,-684.42,0.00020821,2]
[373213172,1752907862682,-727.96,0.00020821,2]
[373213174,1752907862692,-705.88,0.00020821,2]
[373213176,1752907862702,-1405.27,0.00020821,2]
[373213178,1752907862711,-460.0,0.00020821,2]
[373213180,1752907862721,-677.34,0.00020821,2]
[373213182,1752907862730,-2778.31,0.00020821,2]
[373213184,1752907862740,-4383.08,0.00020821,2]
[373213186,1752907862749,-692.73,0.00020821,2]
[373213188,1752907862760,-853.43,0.00020821,2]
[373213190,1752907862769,-561.34,0.00020821,2]
[373213192,1752907862779,-963.81,0.00020821,2]
[373213194,1752907862789,-641.44,0.00020821,2]
[373213196,1752907862798,-529.8,0.00020821,2]
[373213199,1752907862809,-1547.66,0.00020821,2]
[373213201,1752907862818,-520.08,0.00020821,2]
[373213203,1752907862827,-2037.7,0.00020821,2]
[373213204,1752907862837,-2781.98,0.00020821,2]
[373213207,1752907862847,-1565.73,0.00020821,2]
[373213209,1752907862856,-441.0,0.00020822,2]
[373213211,1752907862867,-501.05062047,0.00020823,2]
[373213213,1752907862876,-1182.0,0.00020826,2]
[373213214,1752907862886,-517.294,0.0002083,2]
[373213217,1752907862896,-628.532022,0.00020874,2]
[373213219,1752907862906,-1003.40908628,0.00020874,2]
[373213221,1752907862915,-1500.0,0.00020874,2]
[373213223,1752907862925,-507.05108731,0.00020874,2]
[373213225,1752907862935,-1001.15015757,0.00020874,2]
[373213227,1752907862944,-206.0,0.0002088,2]
[373213229,1752907862954,-5224.8904645,0.00020934,4]
[373213231,1752907862963,-7299.98262913,0.0002099,2]
[373213233,1752907862973,-460.0,0.00020994,2]
[373213235,1752907862982,-501.60468577,0.0002101,2]
[373213237,1752907862992,-512.18850797,0.0002101,2]
[373213238,1752907863002,-500.0,0.00021058,2]
[373213240,1752907863013,-924.29,0.00021095,2]
[373213242,1752907863023,-475.19,0.00021095,2]
[373213244,1752907863033,-639.44,0.00021095,2]
[373213254,1752907863120,-460.0,0.00021095,2]
[373213257,1752907863130,-548.07,0.00021095,2]
[373213259,1752907863140,-460.0,0.00021095,2]
[373213261,1752907863150,-460.0,0.00021095,2]
[373213263,1752907863160,-460.0,0.00021095,2]
[373213265,1752907863169,-575.94,0.00021095,2]
[373213267,1752907863179,-460.0,0.00021095,2]
[373213269,1752907863189,-508.05,0.00021095,2]
[373213271,1752907863198,-3168.93,0.00021095,2]
[373213273,1752907863208,-3148.5,0.00021095,2]
[373213275,1752907863218,-629.76,0.00021095,2]
[373213277,1752907863231,-499.24,0.00021095,2]
[373213279,1752907863241,-792.23,0.00021095,2]
[373213281,1752907863252,-588.5,0.00021095,2]
[373213283,1752907863262,-819.5,0.00021095,2]
[373213285,1752907863272,-3198.65,0.00021095,2]
[373213287,1752907863282,-579.8,0.00021095,2]
[373213289,1752907863292,-1848.02,0.00021095,2]
[373213291,1752907863304,-1266.66,0.00021095,2]
[373213293,1752907863314,-630.59,0.00021095,2]
[373213295,1752907863325,-460.0,0.00021095,2]
[373213297,1752907863334,-460.0,0.00021095,2]
[373213299,1752907863344,-2194.67,0.00021095,2]
[373213301,1752907863354,-1136.64,0.00021095,2]
[373213303,1752907863363,-7435.29,0.00021095,2]
[373213305,1752907863373,-761.71,0.00021095,2]
[373213307,1752907863383,-684.42,0.00021095,2]
[373213309,1752907863393,-727.96,0.00021095,2]
[373213311,1752907863405,-705.88,0.00021095,2]
[373213313,1752907863415,-1405.27,0.00021095,2]
[373213315,1752907863425,-460.0,0.00021095,2]
[373213317,1752907863435,-677.34,0.00021095,2]
[373213319,1752907863445,-2778.31,0.00021095,2]
[373213321,1752907863455,-692.73,0.00021095,2]
[373213323,1752907863464,-4383.08,0.00021095,2]
[373213325,1752907863474,-853.43,0.00021095,2]
[373213327,1752907863483,-561.34,0.00021095,2]
[373213329,1752907863493,-963.81,0.00021095,2]
[373213331,1752907863503,-641.44,0.00021095,2]
[373213333,1752907863513,-529.8,0.00021095,2]
[373213335,1752907863523,-1547.66,0.00021095,2]
[373213337,1752907863532,-520.08,0.00021095,2]
[373213339,1752907863542,-2037.7,0.00021095,2]
[373213341,1752907863552,-2781.98,0.00021095,2]
[373213343,1752907863562,-441.0,0.00021096,2]
[373213345,1752907863572,-1182.0,0.00021121,2]
[373213347,1752907863582,-223.81751,0.00021141,2]
[373213349,1752907863592,-1182.0,0.00021141,2]
[373213351,1752907863603,-560.0,0.00021158,2]
[373213353,1752907863612,-1182.0,0.00021196,2]
[373213355,1752907863622,-217.40428983,0.00021203,2]
[373213357,1752907863632,-25000.0,0.00021203,2]
[373213359,1752907863642,-5224.8904645,0.00021245,4]
[373213361,1752907863652,-206.0,0.0002126,2]
[373213363,1752907863662,-460.0,0.00021268,2]
[373213365,1752907863671,-500.0,0.00021269,2]
[373213367,1752907863681,-1182.0,0.00021294,2]
[373213369,1752907863691,-1182.0,0.00021312,2]
[373213371,1752907863701,-1182.0,0.00021323,2]
[373213373,1752907863711,-924.29,0.00021369,2]
[373213375,1752907863721,-475.19,0.00021369,2]
[373213377,1752907863731,-639.44,0.00021369,2]
[373213379,1752907863741,-460.0,0.00021369,2]
[373213381,1752907863750,-520.3,0.00021369,2]
[373213383,1752907863761,-460.0,0.00021369,2]
[373213385,1752907863771,-203.08861171,0.00021369,2]
[373213387,1752907863780,-575.94,0.00021369,2]
[373213389,1752907863790,-288.01346243,0.00021369,2]
[373213391,1752907863800,-508.05,0.00021369,2]
[373213393,1752907863810,-3168.93,0.00021369,2]
[373213395,1752907863821,-3148.5,0.00021369,2]
[373213397,1752907863830,-629.76,0.00021369,2]
[373213399,1752907863839,-499.24,0.00021369,2]
[373213401,1752907863849,-792.23,0.00021369,2]
[373213403,1752907863858,-588.5,0.00021369,2]
[373213405,1752907863868,-819.5,0.00021369,2]
[373213407,1752907863877,-3198.65,0.00021369,2]
[373213409,1752907863886,-579.8,0.00021369,2]
[373213411,1752907863896,-1848.02,0.00021369,2]
[373213413,1752907863905,-1266.66,0.00021369,2]
[373213415,1752907863915,-630.59,0.00021369,2]
[373213417,1752907863925,-187.90979149,0.00021369,2]
[373213419,1752907863935,-460.0,0.00021369,2]
[373213420,1752907863945,-2194.67,0.00021369,2]
[373213423,1752907863956,-1136.64,0.00021369,2]
[373213424,1752907863966,-7435.29,0.00021369,2]
[373213427,1752907863976,-761.71,0.00021369,2]
[373213429,1752907863985,-684.42,0.00021369,2]
[373213431,1752907863995,-727.96,0.00021369,2]
[373213433,1752907864004,-705.88,0.00021369,2]
[373213434,1752907864014,-1405.27,0.00021369,2]
[373213436,1752907864023,-460.0,0.00021369,2]
[373213439,1752907864033,-677.34,0.00021369,2]
[373213441,1752907864043,-2778.31,0.00021369,2]
[373213443,1752907864053,-692.73,0.00021369,2]
[373213444,1752907864063,-4383.08,0.00021369,2]
[373213446,1752907864073,-853.43,0.00021369,2]
[373213448,1752907864082,-561.34,0.00021369,2]
[373213450,1752907864092,-963.81,0.00021369,2]
[373213452,1752907864102,-641.44,0.00021369,2]
[373213454,1752907864113,-529.8,0.00021369,2]
[373213456,1752907864122,-1547.66,0.00021369,2]
[373213458,1752907864132,-520.08,0.00021369,2]
[373213460,1752907864141,-2037.7,0.00021369,2]
[373213461,1752907864151,-2781.98,0.00021369,2]
[373213462,1752907864161,-441.0,0.0002137,2]
[373213463,1752907864171,-2000.0,0.00021422,2]
[373213464,1752907864180,-1182.0,0.00021453,2]
[373213465,1752907864189,-1235.0,0.00021454,2]
[373213466,1752907864198,-1182.0,0.0002147,2]
[373213467,1752907864207,-1182.0,0.00021501,2]
[373213469,1752907864216,-7299.98262913,0.00021534,2]
[373213471,1752907864233,-5224.8904645,0.00021555,5]
[373213473,1752907864243,-900.0,0.00021581,2]
[373213475,1752907864254,-1053.80709739,0.00021597,2]
[373213477,1752907864263,-206.0,0.0002163,2]
[373213479,1752907864272,-924.29,0.00021643,2]
[373213481,1752907864282,-475.19,0.00021643,2]
[373213483,1752907864291,-639.44,0.00021643,2]
[373213485,1752907864301,-460.0,0.00021643,2]
[373213487,1752907864311,-519.94461096,0.00021643,2]
[373213489,1752907864321,-575.94,0.00021643,2]
[373213491,1752907864331,-508.05,0.00021643,2]
[373213493,1752907864340,-3168.93,0.00021643,2]
[373213495,1752907864350,-3148.5,0.00021643,2]
[373213497,1752907864359,-629.76,0.00021643,2]
[373213499,1752907864370,-499.24,0.00021643,2]
[373213501,1752907864379,-792.23,0.00021643,2]
[373213504,1752907864389,-588.5,0.00021643,2]
[373213505,1752907864399,-819.5,0.00021643,2]
[373213507,1752907864409,-3198.65,0.00021643,2]
[373213510,1752907864418,-579.8,0.00021643,2]
[373213511,1752907864427,-1848.02,0.00021643,2]